fUSD/lending_fUSD_20240516
["ID","MTS","AMOUNT","RATE_DAILY","PERIOD"]
[327205173,1715898642150,-199.09352837,0.00011836,2]
[327205174,1715898642160,-520.03,0.00011836,2]
[327205175,1715898642169,-527.01,0.00011836,2]
[327205176,1715898642179,-1032.23,0.00011836,2]
[327205177,1715898642188,-500.0,0.00011836,2]
[327205178,1715898642198,-652.89,0.00011836,2]
[327205179,1715898642207,-500.0,0.00011836,2]
[327205180,1715898642216,-500.0,0.00011836,2]
[327205181,1715898642226,-500.0,0.00011836,2]
[327205182,1715898642235,-500.0,0.00011836,2]
[327205183,1715898642246,-500.0,0.00011836,2]
[327205184,1715898642256,-1101.54,0.00011836,2]
[327205185,1715898642265,-500.0,0.00011836,2]
[327205186,1715898642275,-595.33,0.00011836,2]
[327205187,1715898642285,-880.22,0.00011836,2]
[327205188,1715898642294,-1040.32,0.00011836,2]
[327205189,1715898642304,-1005.97,0.00011836,2]
[327205190,1715898642314,-994.76,0.00011836,2]
[327205191,1715898642323,-1147.86,0.00011836,2]
[327205192,1715898642337,-1170.17,0.00011836,2]
[327205193,1715898642347,-500.0,0.00011836,2]
[327205194,1715898642356,-500.0,0.00011836,2]
[327205195,1715898642366,-500.0,0.00011836,2]
[327205196,1715898642377,-619.53,0.00011836,2]
[327205197,1715898642387,-673.71,0.00011836,2]
[327205198,1715898642396,-906.15,0.00011836,2]
[327205199,1715898642406,-676.79,0.00011836,2]
[327205200,1715898642416,-721.59,0.00011836,2]
[327205201,1715898642432,-594.73,0.00011836,2]
[327205202,1715898642441,-793.2,0.00011836,2]
[327205203,1715898642451,-1329.35,0.00011836,2]
[327205204,1715898642461,-1301.06,0.00011836,2]
[327205205,1715898642472,-500.0,0.00011836,2]
[327205206,1715898642481,-713.75,0.00011836,2]
[327205207,1715898642492,-953.53,0.00011836,2]
[327205208,1715898642502,-500.0,0.00011836,2]
[327205209,1715898642512,-1231.03,0.00011836,2]
[327205210,1715898642521,-500.0,0.00011836,2]
[327205211,1715898642531,-277.82810434,0.00011836,2]
[327205212,1715898642540,-500.0,0.00011836,2]
[327205213,1715898642551,-500.0,0.00011836,2]
[327205214,1715898642561,-500.0,0.00011836,2]
[327205215,1715898642570,-500.0,0.00011836,2]
[327205216,1715898642580,-500.0,0.00011836,2]
[327205217,1715898642591,-500.0,0.00011836,2]
[327205218,1715898642600,-500.0,0.00011836,2]
[327205219,1715898642609,-500.0,0.00011836,2]
[327205220,1715898642619,-500.0,0.00011836,2]
[327205221,1715898642629,-500.0,0.00011836,2]
[327205222,1715898642639,-625.83,0.00011836,2]
[327205223,1715898642650,-634.96,0.00011836,2]
[327205224,1715898642659,-560.23,0.00011836,2]
[327205225,1715898642669,-1051.92,0.00011836,2]
[327205226,1715898642679,-500.0,0.00011836,2]
[327205227,1715898642688,-500.0,0.00011836,2]
[327205228,1715898642698,-269.43582416,0.00011839,2]
[327205229,1715898642707,-500.0,0.0001184,2]
[327205230,1715898642716,-500.0,0.00011845,2]
[327205231,1715898642726,-577.5,0.00011845,2]
[327205232,1715898642736,-500.0,0.00011845,2]
[327205233,1715898642745,-500.0,0.00011845,2]
[327205234,1715898642754,-1776.01,0.00011845,2]
[327205236,1715898642764,-725.43,0.00011845,2]
[327205238,1715898642773,-26428.79,0.00011845,2]
[327205239,1715898642783,-2565.52,0.00011845,2]
[327205240,1715898642795,-500.0,0.00011845,2]
[327205242,1715898642804,-500.0,0.00011845,2]
[327205243,1715898642813,-377.88213118,0.00011845,2]
[327205245,1715898642824,-2785.62,0.00011845,2]
[327205247,1715898642834,-676.18,0.00011846,2]
[327205248,1715898642843,-4044.06,0.00011846,2]
[327205249,1715898642853,-603.22,0.00011846,2]
[327205250,1715898642863,-1409.4,0.00011846,2]
[327205251,1715898642875,-500.0,0.00011846,2]
[327205252,1715898642885,-1835.87,0.00011846,2]
[327205254,1715898642895,-3522.13,0.00011846,2]
[327205256,1715898642904,-432.92735344,0.00011846,2]
[327205258,1715898642914,-577.5,0.00011846,2]
[327205261,1715898642923,-1625.36,0.00011846,2]
[327205265,1715898642934,-500.0,0.00011846,2]
[327205268,1715898642944,-500.0,0.00011846,2]
[327205270,1715898642953,-500.0,0.00011846,2]
[327205271,1715898642963,-1800.17,0.00011846,2]
[327205272,1715898642972,-500.0,0.00011846,2]
[327205273,1715898642982,-522.99,0.00011846,2]
[327205274,1715898642991,-1355.55,0.00011846,2]
[327205275,1715898643000,-1776.01,0.00011846,2]
[327205276,1715898643010,-1150.88,0.00011846,2]
[327205277,1715898643019,-725.43,0.00011846,2]
[327205279,1715898643028,-8700.31886676,0.00011846,2]
[327205284,1715898643060,-5021.10113324,0.00011846,2]
[327205286,1715898643069,-26428.79,0.00011846,2]
[327205287,1715898643078,-2565.52,0.00011846,2]
[327205288,1715898643087,-500.0,0.00011846,2]
[327205289,1715898643097,-155.5194,0.00011846,2]
[327205290,1715898643106,-294.87,0.00011846,2]
[327205291,1715898643115,-2785.62,0.00011846,2]
[327205292,1715898643125,-500.0,0.00011846,2]
[327205293,1715898643135,-349.30123102,0.00011846,2]
[327205294,1715898643144,-1341.08,0.00011846,2]
[327205295,1715898643154,-546.52675768,0.00011846,2]
[327205296,1715898643163,-354.20870679,0.00011847,2]
[327205297,1715898643173,-336.20966708,0.00011847,2]
[327205298,1715898643184,-500.0,0.00011847,2]
[327205299,1715898643193,-500.0,0.00011847,2]
[327205300,1715898643203,-500.0,0.00011847,2]
[327205301,1715898643213,-509.95740186,0.00011847,2]
[327205302,1715898643223,-500.0,0.00011847,2]
[327205303,1715898643234,-500.0,0.00011847,2]
[327205304,1715898643243,-500.0,0.00011847,2]
[327205305,1715898643253,-500.0,0.00011847,2]
[327205306,1715898643263,-500.0,0.00011847,2]
[327205307,1715898643272,-500.0,0.00011847,2]
[327205308,1715898643281,-500.0,0.00011847,2]
[327205309,1715898643290,-500.0,0.00011847,2]
[327205310,1715898643300,-500.0,0.00011847,2]
[327205311,1715898643309,-500.0,0.00011847,2]
[327205312,1715898643318,-500.0,0.00011847,2]
[327205313,1715898643328,-500.0,0.00011847,2]
[327205314,1715898643337,-442.40125184,0.00011847,2]
[327205315,1715898643347,-500.0,0.00011847,2]
[327205316,1715898643356,-433.22510375,0.00011847,2]
[327205317,1715898643366,-500.0,0.00011847,2]
[327205318,1715898643375,-500.0,0.00011847,2]
[327205319,1715898643386,-500.0,0.00011847,2]
[327205320,1715898643395,-546.94050467,0.00011847,2]
[327205321,1715898643405,-616.15,0.00011847,2]
[327205322,1715898643415,-204.44716233,0.00011847,2]
[327205323,1715898643427,-1527.36588242,0.00011847,2]
[327205324,1715898643437,-500.0,0.00011847,2]
[327205325,1715898643447,-324.99372093,0.00011847,2]
[327205326,1715898643457,-3079.97215406,0.00011847,2]
[327205327,1715898643468,-155.96751744,0.00011847,2]
[327205328,1715898643477,-196.37360908,0.00011847,2]
[327205329,1715898643486,-409.44623215,0.00011847,2]
[327205330,1715898643496,-309.60510547,0.00011847,2]
[327205331,1715898643508,-5343.83447431,0.00011847,2]
[327205332,1715898643518,-610.35,0.00011847,2]
[327205333,1715898643527,-196.32195717,0.00011847,2]
[327205334,1715898643536,-265.74206863,0.00011847,2]
[327205335,1715898643546,-263.0103991,0.00011847,2]
[327205336,1715898643556,-156.26918012,0.00011847,2]
[327205337,1715898643565,-255.90203581,0.00011847,2]
[327205338,1715898643574,-155.0,0.00011847,2]
[327205339,1715898643584,-260.42389191,0.00011847,2]
[327205340,1715898643593,-342.63780811,0.00011847,2]
[327205341,1715898643603,-326.04893354,0.00011847,2]
[327205342,1715898643612,-155.0,0.00011847,2]
[327205343,1715898643621,-1532.67439124,0.00011847,2]
[327205344,1715898643632,-286.67348432,0.00011847,2]
[327205345,1715898643641,-155.0,0.00011847,2]
[327205346,1715898643650,-158.81537813,0.00011847,2]
[327205347,1715898643660,-236.70245155,0.00011847,2]
[327205348,1715898643669,-155.0,0.00011847,2]
[327205349,1715898643678,-393.0610253,0.00011847,2]
[327205350,1715898643687,-243.33016057,0.00011847,2]
[327205351,1715898643696,-155.0,0.00011847,2]
[327205352,1715898643705,-221.64247872,0.00011847,2]
[327205353,1715898643714,-158.24340433,0.00011847,2]
[327205355,1715898643723,-453.58845194,0.00011847,2]
[327205356,1715898643732,-162.17689798,0.00011847,2]
[327205357,1715898643741,-500.0,0.00011847,2]
[327205358,1715898643750,-382.30066085,0.00011847,2]
[327205359,1715898643759,-622.01146866,0.00011847,2]
[327205360,1715898643768,-157.0188053,0.00011847,2]
[327205361,1715898643778,-1357.73774413,0.00011847,2]
[327205362,1715898643787,-265.67139027,0.00011847,2]
[327205363,1715898643796,-156.34869145,0.00011847,2]
[327205364,1715898643805,-500.0,0.00011847,2]
[327205365,1715898643814,-500.0,0.00011847,2]
[327205366,1715898643823,-500.0,0.00011847,2]
[327205367,1715898643832,-500.0,0.00011847,2]
[327205368,1715898643842,-500.0,0.00011847,2]
[327205369,1715898643852,-500.0,0.00011847,2]
[327205370,1715898643861,-500.0,0.00011847,2]
[327205371,1715898643871,-500.0,0.00011847,2]
[327205372,1715898643881,-500.0,0.00011847,2]
[327205373,1715898643890,-500.0,0.00011847,2]
[327205374,1715898643900,-500.0,0.00011847,2]
[327205375,1715898643909,-500.0,0.00011847,2]
[327205376,1715898643918,-500.0,0.00011847,2]
[327205377,1715898643927,-500.0,0.00011847,2]
[327205378,1715898643937,-500.0,0.00011847,2]
[327205379,1715898643946,-500.0,0.00011847,2]
[327205380,1715898643956,-500.0,0.00011847,2]
[327205381,1715898643965,-500.0,0.00011847,2]
[327205383,1715898643974,-500.0,0.00011847,2]
[327205385,1715898643983,-500.0,0.00011847,2]
[327205387,1715898643993,-226.65825705,0.00011847,2]
[327205388,1715898644002,-156.15078988,0.00011847,2]
[327205389,1715898644011,-552.35,0.00011847,2]
[327205390,1715898644021,-155.1400394,0.00011847,2]
[327205391,1715898644031,-2027.10806006,0.00011847,2]
[327205392,1715898644041,-500.0,0.00011847,2]
[327205393,1715898644050,-127551.80111332,0.00011847,2]
[327205394,1715898644060,-155.0,0.00011847,2]
[327205395,1715898644070,-171.53287191,0.00011847,2]
[327205396,1715898644080,-347.06747875,0.00011847,2]
[327205397,1715898644090,-184.8662877,0.00011847,2]
[327205398,1715898644100,-317.63013013,0.00011847,2]
[327205399,1715898644110,-500.0,0.00011847,2]
[327205400,1715898644120,-887.34537112,0.00011847,2]
[327205401,1715898644129,-500.0,0.00011847,2]
[327205402,1715898644139,-261.55411948,0.00011847,2]
[327205403,1715898644149,-500.0,0.00011847,2]
[327205404,1715898644158,-155.61637897,0.00011847,2]
[327205405,1715898644168,-500.0,0.00011847,2]
[327205406,1715898644178,-1158.6,0.00011847,2]
[327205407,1715898644188,-500.0,0.00011847,2]
[327205408,1715898644196,-524.84,0.00011847,2]
[327205409,1715898644206,-527.1619475,0.00011847,2]
[327205410,1715898644215,-538.3518557,0.00011847,2]
[327205411,1715898644224,-744.28,0.00011847,2]
[327205412,1715898644236,-500.0,0.00011847,2]
[327205413,1715898644246,-551.64125746,0.00011847,2]
[327205414,1715898644255,-500.0,0.00011847,2]
[327205415,1715898644265,-399.14345398,0.00011847,2]
[327205416,1715898644274,-500.0,0.00011847,2]
[327205417,1715898644284,-500.0,0.00011847,2]
[327205418,1715898644294,-500.0,0.00011847,2]
[327205419,1715898644303,-500.0,0.00011847,2]
[327205420,1715898644312,-500.0,0.00011847,2]
[327205421,1715898644323,-270.4,0.00011847,2]
[327205422,1715898644332,-500.0,0.00011847,2]
[327205423,1715898644342,-1002.92,0.00011847,2]
[327205424,1715898644352,-964.12,0.00011847,2]
[327205425,1715898644361,-500.0,0.00011847,2]
[327205426,1715898644372,-500.0,0.00011847,2]
[327205427,1715898644383,-500.0,0.00011847,2]
[327205428,1715898644392,-500.0,0.00011847,2]
[327205429,1715898644401,-500.0,0.00011847,2]
[327205430,1715898644410,-649.6,0.00011847,2]
[327205431,1715898644423,-500.0,0.00011847,2]
[327205432,1715898644434,-500.0,0.00011847,2]
[327205433,1715898644445,-536.65880568,0.00011847,2]
[327205434,1715898644455,-500.0,0.00011847,2]
[327205435,1715898644466,-763.3,0.00011847,2]
[327205436,1715898644476,-152.45871157,0.00011847,2]
[327205437,1715898644485,-500.0,0.00011847,2]
[327205438,1715898644496,-649.26,0.00011847,2]
[327205439,1715898644506,-500.0,0.00011847,2]
[327205440,1715898644516,-516.86028296,0.00011847,2]
[327205441,1715898644525,-567.37,0.00011847,2]
[327205442,1715898644535,-1578.24,0.00011847,2]
[327205443,1715898644545,-500.0,0.00011847,2]
[327205444,1715898644554,-638.43,0.00011847,2]
[327205445,1715898644564,-1573.5,0.00011847,2]
[327205446,1715898644573,-500.0,0.00011847,2]
[327205447,1715898644582,-500.0,0.00011847,2]
[327205448,1715898644591,-1863.63,0.00011847,2]
[327205449,1715898644612,-500.0,0.00011847,2]
[327205450,1715898644622,-637.27,0.00011847,2]
[327205451,1715898644633,-4913.81,0.00011847,2]
[327205452,1715898644643,-500.0,0.00011847,2]
[327205453,1715898644653,-1422.09,0.00011847,2]
[327205454,1715898644663,-500.0,0.00011847,2]
[327205455,1715898644674,-1015.05,0.00011847,2]
[327205456,1715898644683,-676.18,0.00011847,2]
[327205457,1715898644693,-1168.83,0.00011847,2]
[327205458,1715898644703,-1107.81,0.00011847,2]
[327205459,1715898644715,-676.98,0.00011847,2]
[327205460,1715898644727,-4044.06,0.00011847,2]
[327205461,1715898644737,-500.0,0.00011847,2]
[327205462,1715898644747,-603.22,0.00011847,2]
[327205463,1715898644758,-1381.2,0.00011847,2]
[327205464,1715898644768,-536.82848852,0.00011847,2]
[327205465,1715898644779,-192.39721431,0.00011847,2]
[327205466,1715898644789,-2223.61,0.00011847,2]
[327205467,1715898644799,-500.0,0.00011847,2]
[327205468,1715898644809,-1409.4,0.00011847,2]
[327205469,1715898644819,-679.49,0.00011847,2]
[327205470,1715898644829,-500.0,0.00011847,2]
[327205471,1715898644839,-500.0,0.00011847,2]
[327205472,1715898644849,-500.0,0.00011847,2]
[327205473,1715898644859,-5510.07,0.00011847,2]
[327205474,1715898644869,-1149.75,0.00011847,2]
[327205475,1715898644879,-1835.87,0.00011847,2]
[327205476,1715898644889,-500.0,0.00011847,2]
[327205477,1715898644899,-1159.57,0.00011847,2]
[327205478,1715898644909,-764.02,0.00011847,2]
[327205479,1715898644919,-3522.13,0.00011847,2]
[327205480,1715898644929,-1119.18,0.00011847,2]
[327205481,1715898644938,-4217.95,0.00011847,2]
[327205482,1715898644948,-577.5,0.00011847,2]
[327205483,1715898644957,-4766.26,0.00011847,2]
[327205484,1715898645157,-864.92,0.00011847,2]
[327205485,1715898645166,-1625.36,0.00011847,2]
[327205486,1715898645176,-500.0,0.00011847,2]
[327205487,1715898645185,-500.0,0.00011847,2]
[327205488,1715898645195,-500.0,0.00011847,2]
[327205489,1715898645203,-1717.67,0.00011847,2]
[327205490,1715898645212,-500.0,0.00011847,2]
[327205491,1715898645222,-1800.17,0.00011847,2]
[327205492,1715898645231,-500.0,0.00011847,2]
[327205493,1715898645240,-1789.55,0.00011847,2]
[327205494,1715898645249,-522.99,0.00011847,2]
[327205495,1715898645259,-1355.55,0.00011847,2]
[327205496,1715898645267,-1776.01,0.00011847,2]
[327205497,1715898645277,-1150.88,0.00011847,2]
[327205498,1715898645286,-725.43,0.00011847,2]
[327205499,1715898645295,-13721.42,0.00011847,2]
[327205500,1715898645304,-26428.79,0.00011847,2]
[327205501,1715898645313,-2565.52,0.00011847,2]
[327205502,1715898645322,-5440.69,0.00011847,2]
[327205503,1715898645331,-500.0,0.00011847,2]
[327205504,1715898645341,-3495.61,0.00011847,2]
[327205505,1715898645350,-500.0,0.00011847,2]
[327205506,1715898645359,-500.0,0.00011847,2]
[327205507,1715898645369,-521.2,0.00011847,2]
[327205508,1715898645378,-2785.62,0.00011847,2]
[327205509,1715898645387,-500.0,0.00011847,2]
[327205510,1715898645396,-1341.08,0.00011847,2]
[327205511,1715898645407,-523.06354382,0.00011848,2]
[327205512,1715898645416,-500.0,0.00011848,2]
[327205513,1715898645431,-500.0,0.00011848,2]
[327205514,1715898645440,-500.0,0.00011848,2]
[327205515,1715898645450,-534.14254944,0.00011848,2]
[327205516,1715898645463,-500.0,0.00011848,2]
[327205517,1715898645472,-500.0,0.00011848,2]
[327205518,1715898645482,-552.53,0.00011848,2]
[327205519,1715898645492,-500.0,0.00011848,2]
[327205520,1715898645501,-500.0,0.00011848,2]
[327205521,1715898645513,-500.0,0.00011848,2]
[327205522,1715898645523,-500.0,0.00011848,2]
[327205523,1715898645532,-416.32,0.00011848,2]
[327205524,1715898645544,-500.0,0.00011848,2]
[327205525,1715898645554,-500.0,0.00011848,2]
[327205526,1715898645564,-500.0,0.00011848,2]
[327205527,1715898645574,-344.6,0.00011848,2]
[327205528,1715898645583,-500.0,0.00011848,2]
[327205529,1715898645594,-500.0,0.00011848,2]
[327205530,1715898645605,-500.0,0.00011848,2]
[327205531,1715898645614,-500.0,0.00011848,2]
[327205532,1715898645625,-500.0,0.00011848,2]
[327205533,1715898645635,-500.0,0.00011848,2]
[327205534,1715898645645,-500.0,0.00011848,2]
[327205535,1715898645654,-500.0,0.00011848,2]
[327205536,1715898645663,-223.21,0.00011848,2]
[327205537,1715898645672,-500.0,0.00011848,2]
[327205538,1715898645681,-451.5,0.00011848,2]
[327205539,1715898645691,-500.0,0.00011848,2]
[327205540,1715898645702,-500.0,0.00011848,2]
[327205541,1715898645712,-500.0,0.00011848,2]
[327205542,1715898645722,-220.23321945,0.00011848,2]
[327205543,1715898645732,-500.0,0.00011848,2]
[327205544,1715898645743,-500.0,0.00011848,2]
[327205545,1715898645755,-500.0,0.00011848,2]
[327205546,1715898645766,-500.0,0.00011848,2]
[327205547,1715898645776,-500.0,0.00011848,2]
[327205548,1715898645786,-500.0,0.00011848,2]
[327205549,1715898645797,-500.0,0.00011848,2]
[327205550,1715898645807,-500.0,0.00011848,2]
[327205551,1715898645817,-500.0,0.00011848,2]
[327205552,1715898645827,-500.0,0.00011848,2]
[327205553,1715898645837,-500.0,0.00011848,2]
[327205554,1715898645847,-500.0,0.00011848,2]
[327205555,1715898645856,-500.0,0.00011848,2]
[327205556,1715898645865,-500.0,0.00011848,2]
[327205557,1715898645874,-520.03,0.00011848,2]
[327205558,1715898645884,-500.0,0.00011848,2]
[327205559,1715898645893,-520.03,0.00011848,2]
[327205560,1715898645903,-520.03,0.00011848,2]
[327205561,1715898645913,-520.03,0.00011848,2]
[327205562,1715898645923,-500.0,0.00011848,2]
[327205563,1715898645933,-520.03,0.00011848,2]
[327205564,1715898645943,-500.0,0.00011848,2]
[327205565,1715898645955,-500.0,0.00011848,2]
[327205566,1715898645964,-500.0,0.00011848,2]
[327205567,1715898645974,-500.0,0.00011848,2]
[327205568,1715898645984,-527.01,0.00011848,2]
[327205569,1715898645994,-527.01,0.00011848,2]
[327205570,1715898646004,-527.01,0.00011848,2]
[327205571,1715898646013,-527.01,0.00011848,2]
[327205572,1715898646022,-527.01,0.00011848,2]
[327205573,1715898646031,-500.0,0.00011848,2]
[327205574,1715898646040,-500.0,0.00011848,2]
[327205575,1715898646049,-521.46735822,0.00011848,2]
[327205576,1715898646058,-500.0,0.00011848,2]
[327205577,1715898646067,-500.0,0.00011848,2]
[327205578,1715898646076,-500.0,0.00011848,2]
[327205579,1715898646085,-500.0,0.00011848,2]
[327205580,1715898646094,-500.0,0.00011848,2]
[327205581,1715898646104,-500.0,0.00011848,2]
[327205582,1715898646113,-500.0,0.00011848,2]
[327205583,1715898646122,-1032.23,0.00011848,2]
[327205584,1715898646132,-1032.23,0.00011848,2]
[327205585,1715898646141,-1032.23,0.00011848,2]
[327205586,1715898646151,-1032.23,0.00011848,2]
[327205587,1715898646163,-1032.23,0.00011848,2]
[327205588,1715898646173,-500.0,0.00011848,2]
[327205589,1715898646185,-500.0,0.00011848,2]
[327205590,1715898646195,-500.0,0.00011848,2]
[327205591,1715898646205,-500.0,0.00011848,2]
[327205592,1715898646215,-500.0,0.00011848,2]
[327205593,1715898646223,-500.0,0.00011848,2]
[327205594,1715898646232,-500.0,0.00011848,2]
[327205595,1715898646241,-500.0,0.00011848,2]
[327205596,1715898646250,-500.0,0.00011848,2]
[327205597,1715898646259,-500.0,0.00011848,2]
[327205598,1715898646269,-500.0,0.00011848,2]
[327205599,1715898646278,-500.0,0.00011848,2]
[327205600,1715898646289,-500.0,0.00011848,2]
[327205601,1715898646301,-652.89,0.00011848,2]
[327205602,1715898646311,-652.89,0.00011848,2]
[327205603,1715898646320,-652.89,0.00011848,2]
[327205604,1715898646329,-500.0,0.00011848,2]
[327205605,1715898646338,-652.89,0.00011848,2]
[327205606,1715898646347,-500.0,0.00011848,2]
[327205607,1715898646357,-652.89,0.00011848,2]
[327205608,1715898646366,-500.0,0.00011848,2]
[327205609,1715898646375,-500.0,0.00011848,2]
[327205610,1715898646385,-500.0,0.00011848,2]
[327205611,1715898646394,-521.74170344,0.00011848,2]
[327205612,1715898646404,-500.0,0.00011848,2]
[327205613,1715898646413,-500.0,0.00011848,2]
[327205614,1715898646426,-500.0,0.00011848,2]
[327205615,1715898646435,-500.0,0.00011848,2]
[327205616,1715898646445,-500.0,0.00011848,2]
[327205617,1715898646454,-500.0,0.00011848,2]
[327205618,1715898646465,-500.0,0.00011848,2]
[327205619,1715898646475,-500.0,0.00011848,2]
[327205620,1715898646485,-500.0,0.00011848,2]
[327205621,1715898646495,-500.0,0.00011848,2]
[327205622,1715898646507,-599.36228549,0.00011848,2]
[327205623,1715898646517,-500.0,0.00011848,2]
[327205624,1715898646525,-500.0,0.00011848,2]
[327205625,1715898646534,-500.0,0.00011848,2]
[327205627,1715898646543,-500.0,0.00011848,2]
[327205629,1715898646553,-500.0,0.00011848,2]
[327205630,1715898646562,-500.0,0.00011848,2]
[327205631,1715898646571,-500.0,0.00011848,2]
[327205632,1715898646581,-500.0,0.00011848,2]
[327205633,1715898646592,-495.44,0.00011848,2]
[327205634,1715898646601,-500.0,0.00011848,2]
[327205635,1715898646611,-500.0,0.00011848,2]
[327205636,1715898646620,-500.0,0.00011848,2]
[327205637,1715898646632,-500.0,0.00011848,2]
[327205638,1715898646642,-500.0,0.00011848,2]
[327205639,1715898646652,-500.0,0.00011848,2]
[327205640,1715898646661,-500.0,0.00011848,2]
[327205641,1715898646670,-500.0,0.00011848,2]
[327205642,1715898646679,-500.0,0.00011848,2]
[327205643,1715898646689,-500.0,0.00011848,2]
[327205644,1715898646700,-500.0,0.00011848,2]
[327205645,1715898646710,-500.0,0.00011848,2]
[327205646,1715898646719,-500.0,0.00011848,2]
[327205647,1715898646729,-500.0,0.00011848,2]
[327205648,1715898646738,-500.0,0.00011848,2]
[327205649,1715898646747,-500.0,0.00011848,2]
[327205650,1715898646756,-500.0,0.00011848,2]
[327205651,1715898646765,-212.35,0.00011848,2]
[327205652,1715898646775,-827.98,0.00011848,2]
[327205653,1715898646784,-827.98,0.00011848,2]
[327205654,1715898646793,-827.98,0.00011848,2]
[327205655,1715898646803,-827.98,0.00011848,2]
[327205656,1715898646812,-827.98,0.00011848,2]
[327205657,1715898646822,-1101.54,0.00011848,2]
[327205658,1715898646832,-1101.54,0.00011848,2]
[327205659,1715898646843,-1101.54,0.00011848,2]
[327205660,1715898646853,-1101.54,0.00011848,2]
[327205661,1715898646863,-1101.54,0.00011848,2]
[327205662,1715898646873,-500.0,0.00011848,2]
[327205663,1715898646883,-500.0,0.00011848,2]
[327205664,1715898646893,-500.0,0.00011848,2]
[327205665,1715898646902,-500.0,0.00011848,2]
[327205666,1715898646911,-530.93189907,0.00011848,2]
[327205667,1715898646920,-595.33,0.00011848,2]
[327205668,1715898646929,-500.0,0.00011848,2]
[327205669,1715898646938,-595.33,0.00011848,2]
[327205670,1715898646947,-500.0,0.00011848,2]
[327205671,1715898646956,-595.33,0.00011848,2]
[327205672,1715898646965,-500.0,0.00011848,2]
[327205673,1715898646973,-595.33,0.00011848,2]
[327205674,1715898646983,-500.0,0.00011848,2]
[327205675,1715898646991,-595.33,0.00011848,2]
[327205676,1715898647000,-500.0,0.00011848,2]
[327205677,1715898647009,-708.68,0.00011848,2]
[327205678,1715898647018,-708.68,0.00011848,2]
[327205679,1715898647027,-708.68,0.00011848,2]
[327205680,1715898647037,-708.68,0.00011848,2]
[327205681,1715898647046,-708.68,0.00011848,2]
[327205682,1715898647055,-880.22,0.00011848,2]
[327205683,1715898647064,-880.22,0.00011848,2]
[327205684,1715898647073,-880.22,0.00011848,2]
[327205685,1715898647082,-880.22,0.00011848,2]
[327205686,1715898647092,-880.22,0.00011848,2]
[327205687,1715898647103,-1040.32,0.00011848,2]
[327205688,1715898647113,-1040.32,0.00011848,2]
[327205689,1715898647123,-1040.32,0.00011848,2]
[327205690,1715898647133,-1040.32,0.00011848,2]
[327205691,1715898647143,-1040.32,0.00011848,2]
[327205692,1715898647157,-1186.98,0.00011848,2]
[327205693,1715898647166,-1186.98,0.00011848,2]
[327205694,1715898647175,-1186.98,0.00011848,2]
[327205695,1715898647186,-1186.98,0.00011848,2]
[327205696,1715898647197,-1186.98,0.00011848,2]
[327205697,1715898647206,-1005.97,0.00011848,2]
[327205698,1715898647216,-1005.97,0.00011848,2]
[327205699,1715898647225,-1064.41,0.00011848,2]
[327205700,1715898647235,-1005.97,0.00011848,2]